Cogmind - Beta 15 @@@ ROGUE MODE // 2025.05.25 @ 20:52:08 Player: Duduxx Result: Destroyed by S-10 Pest with Light Assault Rifle Performance ------------- Evolutions (2) 1000 Regions Visited (4) 800 Robots Destroyed (21) 105 Value Destroyed (518) 518 Prototype IDs (3) 60 Alien Tech Used (0) 0 Bonus (223) 223 TOTAL SCORE: 2706 Bonus ------- High Alert Combat Kills 10 Follower Combat Kills 213 Cogmind --------- Core Integrity 0/550 Matter 300/300 Energy 99/100 System Corruption 2% Temperature Cool (0) Movement Core (50) Location -8/Materials Parts ------- > --- POWER (1) -------- (None) > --- PROPULSION (3) --- (None) > --- UTILITY (5) ------ (None) > --- WEAPON (2) ------- (None) > --- INVENTORY (5) ---- Small Storage Unit Experimental Sensor Array Spread Laser Shotgun Mini Grenade Launcher Peak State ------------ > --- POWER ------------ Light Nuclear Core > --- PROPULSION ------- Light Treads Titanium Leg > --- UTILITY ---------- Scrap Suit Improved Heat Sink Medium Storage Unit Hacking Suite > --- WEAPON ----------- Beam Rifle Beam Rifle > --- INVENTORY -------- Cesium-ion Thruster Small Storage Unit Experimental Sensor Array Particle Gun Spread Laser Shotgun Mini Grenade Launcher [Rating: 28] Favorites ----------- Power Ion Engine Engine Ion Engine Power Core Light Nuclear Core Propulsion Light Treads Treads Light Treads Leg Titanium Leg Flight Unit Cesium-ion Thruster Utility Small Storage Unit Device Structural Scanner Storage Small Storage Unit Hackware Hacking Suite Weapon Assault Rifle Energy Gun Beam Rifle Ballistic Gun Assault Rifle Launcher Mini Grenade Launcher Build | -11 -10 -10 -9 -8 ------- Run | Yrd Mat Min Mat Mat Slots Evolved 4 | . . . 2 2 Power . | . . . . . Propulsion 1 | . . . . 1 Utility 3 | . . . 2 1 Weapon . | . . . . . Parts Attached 19 | 6 1 . 7 5 Power 2 | 1 . . . 1 Engine 1 | 1 . . . . Core 1 | . . . . 1 Reactor . | . . . . . Propulsion 4 | 2 . . . 2 Treads 2 | 2 . . . . Leg 1 | . . . . 1 Wheel . | . . . . . Hover . | . . . . . Flight 1 | . . . . 1 Utility 8 | 1 1 . 4 2 Device 4 | . 1 . 3 . Storage 2 | 1 . . 1 . Processor . | . . . . . Hackware 2 | . . . . 2 Protection . | . . . . . Artifact . | . . . . . Weapon 5 | 2 . . 3 . Energy Gun 2 | . . . 2 . Energy Cannon . | . . . . . Ballistic Gun 2 | 2 . . . . Ballistic Cannon . | . . . . . Launcher 1 | . . . 1 . Special Weapon . | . . . . . Impact Weapon . | . . . . . Slashing Weapon . | . . . . . Piercing Weapon . | . . . . . Special Melee Weapon . | . . . . . Unidentified Prototypes 1 | . . . 1 . Parts Lost 10 | . . . 1 9 Power 2 | . . . . 2 Propulsion 3 | . . . . 3 Utility 4 | . . . 1 3 Weapon 1 | . . . . 1 Highest Loss Streak 6 | . . . 1 6 To Critical Strikes . | . . . . . Average Backups 3 | . 1 2 5 6 Power . | . 1 1 1 . Propulsion . | . . . . . Utility 1 | . . 1 2 2 Weapon 1 | . . . 1 3 Tool/Special . | . . . . . Unused Backups 3 | . . . 1 2 Power 1 | . . . 1 . Propulsion . | . . . . . Utility . | . . . . . Weapon 2 | . . . . 2 Tool/Special . | . . . . . Average Slot Usage (%) 86 | . 95 100 84 57 Engine 11 | . 14 14 11 4 Treads 22 | . 28 28 22 9 Device 14 | . 10 14 18 13 Storage 11 | . 14 14 11 5 Hackware 1 | . . . . 7 Energy Gun 6 | . . . 15 11 Ballistic Gun 16 | . 28 28 4 . Peak Build Rating 28 | 6 7 9 25 28 Average Rating 12 | 4 6 7 18 18 On Entrance 8 | . 6 7 9 21 Naked Turns 32 | . . . . 32 Heaviest Build 26 | 14 15 15 26 26 Greatest Support 40 | 40 40 40 40 40 Greatest Overweight (x) 2 | . . . . 2 Average Overweight (x) . | . . . . . Largest Inventory Capacity 10 | 8 8 8 10 10 Average Capacity 8 | 7 8 8 9 8 Most Carried 8 | 1 1 7 8 8 Average Carried 4 | . 1 3 5 6 Final Capacity 10 | 8 8 8 10 5 Final Carried 7 | 1 1 7 7 5 Class Distribution -------------------- 98% | Mutant Dominant Class ---------------- Mutant | -10/Materials Mutant | -10/Mines Mutant | -9/Materials Mutant | -8/Materials Resources | -11 -10 -10 -9 -8 ----------- Run | Yrd Mat Min Mat Mat Matter Collected 463 | 174 . 144 115 30 Remotely . | . . . . . Salvage Created 533 | . 31 31 254 217 Parts 42 | . 4 5 25 8 Haulers Intercepted . | . . . . . Recyclers Shooed . | . . . . . Parts Field Recycled . | . . . . . Retrieved Matter . | . . . . . Parts Self-Destructed . | . . . . . Prevented . | . . . . . Kills | -11 -10 -10 -9 -8 ------- Run | Yrd Mat Min Mat Mat Combat Hostiles Destroyed 16 | . 2 1 9 4 Guns 9 | . 2 1 3 3 AOE 6 | . . . 6 . Classes Destroyed 8 | . 1 2 3 2 Builder 5 | . . 1 4 . Recycler 1 | . . . 1 . Swarmer 6 | . 2 . 4 . Grunt 6 | . . . 4 2 Duelist 1 | . . . 1 . Sentry 1 | . . . . 1 Hunter 1 | . . . . 1 Assembled 1 | . . 1 . . Best Kill Streak 11 | . 2 1 11 2 Combat Bots Only 6 | . 2 1 6 2 Max Kills in Single Turn 5 | . 1 1 5 1 Gunslinging . | . . . . . Exploded 3 | . . . 3 . Melee . | . . . . . Uniques/NPCs Destroyed . | . . . . . Combat | -11 -10 -10 -9 -8 -------- Run | Yrd Mat Min Mat Mat Hostile Shots Fired 225 | . 28 6 44 147 Missed 69 | . 7 3 13 46 Hits 156 | . 21 3 31 101 Melee 7 | . . . . 7 Projectile 149 | . 21 3 31 94 Critical Strikes 3 | . . . . 3 Damage Taken 1872 | . 182 44 362 1284 Core 705 | . 21 . 134 550 Absorbed by Shields . | . . . . . Regen/Repaired (Parts) 24 | . . . 24 . Core Remaining (%) 85 | 100 . 91 66 . Volleys Fired 39 | . 2 6 12 19 Largest 2 | . 2 2 2 2 Hottest 121 | . 40 40 121 112 Shots Fired 76 | . 4 12 24 36 Gun 72 | . 4 12 20 36 Cannon . | . . . . . Launcher 4 | . . . 4 . Special . | . . . . . Kinetic 16 | . 4 12 . . Thermal 56 | . . . 20 36 Explosive 4 | . . . 4 . Electromagnetic . | . . . . . Robot Hit Streak 7 | . 2 3 7 7 Robot Miss Streak 4 | . . 3 4 1 Penetration Max . | . . . . . Secondary Targets 1 | . . . 1 . Max Gunslinging Chain 1 | . . . 1 . Shots Hit Robots 51 | . 2 5 17 27 Core Hits 32 | . 2 3 15 12 Critical Kills . | . . . . . Critical Parts Destroyed . | . . . . . Critical Strikes 4 | . . . 1 3 Burn 4 | . . . 1 3 Melee Attacks . | . . . . . Impact . | . . . . . Slashing . | . . . . . Piercing . | . . . . . Sneak Attacks . | . . . . . Combat Hostiles . | . . . . . Follow-up Attacks . | . . . . . Damage Inflicted 1636 | . 26 80 1090 440 Guns 740 | . 26 80 199 435 Cannons . | . . . . . Explosions 891 | . . . 891 . Melee . | . . . . . Ramming 5 | . . . . 5 Kinetic 106 | . 26 80 . . Thermal 1121 | . . . 686 435 Explosive 404 | . . . 404 . Electromagnetic . | . . . . . Impact . | . . . . . Slashing . | . . . . . Piercing . | . . . . . Highest Corruption 2 | . . . . 2 Average Corruption 2 | . . . . 2 Corruption Purged . | . . . . . Corruption Blocked . | . . . . . Effects 2 | . . . . 2 Message Errors 1 | . . . . 1 Heat Flow Errors 1 | . . . . 1 Overload Shots . | . . . . . Overflow Damage 51 | . . . 51 . Projectiles . | . . . . . Explosions 51 | . . . 51 . Melee . | . . . . . Knockbacks . | . . . . . Impact . | . . . . . Kinetic . | . . . . . Secondary . | . . . . . Self-Inflicted Damage 76 | . . . 74 2 Shots 1 | . . . 1 . Rammed 1 | . . . . 1 Targets Rammed 1 | . . . . 1 Kicked . | . . . . . Crushed . | . . . . . Highest Temperature 230 | . . . 84 230 Average Temperature 34 | . . . 25 51 Received Heat Transfer 354 | . 6 . 15 333 Siege Activations . | . . . . . Martial Activations . | . . . . . Shielding Activations . | . . . . . Robots Disrupted . | . . . . . Combat Hostiles . | . . . . . Robots Corrupted . | . . . . . Combat Hostiles . | . . . . . Parts Fried . | . . . . . Impact Corruptions . | . . . . . Robots Melted 1 | . . . . 1 Combat Hostiles 1 | . . . . 1 Parts Melted 2 | . . . 1 1 Heat Transferred 2287 | . . . 955 1332 Parts Sabotaged . | . . . . . Parts Stolen . | . . . . . Parts Stripped . | . . . . . Power Chain Reactions . | . . . . . Alert | -11 -10 -10 -9 -8 ------- Run | Yrd Mat Min Mat Mat Maximum Alert Level 2 | . . . 2 1 Low Security (%) 78 | 100 100 100 28 69 Level 1 11 | . . . 24 30 Level 2 9 | . . . 46 . Level 3 . | . . . . . Level 4 . | . . . . . Level 5 . | . . . . . High Security . | . . . . . Max Security . | . . . . . Peak Influence 517 | . 50 7 517 345 Initial 201 | . . 7 . 201 Average 104 | . 16 . 318 176 Influence Increases 1146 | . 50 5 657 434 Destroy 0b10 Robot/C 480 | . 40 . 360 80 Destroy 0b10 Robot/NC 45 | . . 5 40 . Destroy Leader 126 | . 10 . 86 30 Allied During Kill 43 | . . . 41 2 Successful Hack 7 | . . . . 7 Disable Machine 75 | . . . 75 . Destroy Structure 55 | . . . 55 . Lose Combat Pursuer 315 | . . . . 315 Influence Decreases 801 | . 30 25 180 566 Entered New Map 289 | . . 13 . 276 Time Decay 352 | . 30 12 130 180 Lost Part 100 | . . . 10 90 Lost Ally 60 | . . . 40 20 Squads Dispatched 9 | . . . 2 7 Investigation 1 | . . . . 1 Extermination . | . . . . . Reinforcement 6 | . . . 2 4 Assault . | . . . . . Garrison 2 | . . . . 2 Intercept . | . . . . . Searches Triggered . | . . . . . Construction Impeded 1 | . . . . 1 Haulers Reinforced . | . . . . . Active Scanning Responses . | . . . . . Cargo Convoy Interrupts . | . . . . . Stealth | -11 -10 -10 -9 -8 --------- Run | Yrd Mat Min Mat Mat Distress Signals 8 | . . 2 2 4 Communications Jammed . | . . . . . Distress Signals . | . . . . . Times Spotted 73 | . 7 5 21 40 Peak Tracking Total 21 | . 4 2 4 21 Tactical Retreats 4 | . . . . 4 Traps | -11 -10 -10 -9 -8 ------- Run | Yrd Mat Min Mat Mat Traps Triggered . | . . . . . Indirectly . | . . . . . Trap Hack Attempts . | . . . . . Triggered . | . . . . . Disarmed . | . . . . . Reprogrammed . | . . . . . Reused . | . . . . . Traps Extracted . | . . . . . Installed . | . . . . . Triggered . | . . . . . Machines | -11 -10 -10 -9 -8 ---------- Run | Yrd Mat Min Mat Mat Machines Disabled 5 | . . . 5 . Max in Single Turn 5 | . . . 5 . Machines Repaired . | . . . . . Machines Dismantled . | . . . . . Machines Sabotaged . | . . . . . Overloaded Fab Kills . | . . . . . Hacking | -11 -10 -10 -9 -8 --------- Run | Yrd Mat Min Mat Mat Machines Accessed 2 | . . . . 2 Terminals 2 | . . . . 2 Fabricators . | . . . . . Repair Stations . | . . . . . Recycling Units . | . . . . . Scanalyzers . | . . . . . Garrison Access . | . . . . . Total Hacks 6 | . . . . 6 Successful 3 | . . . . 3 Failed 3 | . . . . 3 Catastrophic . | . . . . . Database Lockouts . | . . . . . Manual 3 | . . . . 3 Terminals 6 | . . . . 6 Fabricators . | . . . . . Repair Stations . | . . . . . Recycling Units . | . . . . . Scanalyzers . | . . . . . Garrison Access . | . . . . . Terminal Hacks 3 | . . . . 3 Prototype ID Bank 1 | . . . . 1 Repair Station Index 1 | . . . . 1 Alert Level 1 | . . . . 1 Fabricator Hacks . | . . . . . Repair Station Hacks . | . . . . . Recycling Unit Hacks . | . . . . . Scanalyzer . | . . . . . Garrison Access Hacks . | . . . . . Unauthorized Hacks . | . . . . . Terminals . | . . . . . Fabricators . | . . . . . Repair Stations . | . . . . . Recycling Units . | . . . . . Scanalyzers . | . . . . . Garrison Access . | . . . . . Data Cores Recovered . | . . . . . Used . | . . . . . Hacking Detections 1 | . . . . 1 Full Trace Events 1 | . . . . 1 Feedback Events . | . . . . . Feedback Blocked . | . . . . . Robot Schematics Acquired . | . . . . . Robots Built . | . . . . . Authchips . | . . . . . Time . | . . . . . Total Robot Build Rating . | . . . . . Part Schematics Acquired . | . . . . . Parts Built . | . . . . . Authchips . | . . . . . Time . | . . . . . Total Part Build Rating . | . . . . . Parts Repaired . | . . . . . Time . | . . . . . Parts Recycled . | . . . . . Recycled Matter . | . . . . . Retrieved Matter . | . . . . . Retrieved Components . | . . . . . Parts Scanalyzed . | . . . . . Part Schematics Acquired . | . . . . . Parts Damaged . | . . . . . Bothacking | -11 -10 -10 -9 -8 ------------ Run | Yrd Mat Min Mat Mat Used RIF Installer . | . . . . . Robots Hacked . | . . . . . Non-combat . | . . . . . Combat . | . . . . . Robot Hacks Applied . | . . . . . Relay Couplers Released . | . . . . . Fabnet Peak Effective % . | . . . . . Robots Rewired . | . . . . . Allies Hacked . | . . . . . Hacks Repelled . | . . . . . Allies | -11 -10 -10 -9 -8 -------- Run | Yrd Mat Min Mat Mat Total Allies 3 | . . 3 . . Largest Group 3 | . . 3 3 1 Highest-Rated Group 40 | . . 40 40 16 Highest-Rated Ally 16 | . . 16 16 16 Total Orders . | . . . . . Ally Attacks 54 | . . 13 37 4 Total Damage 587 | . . 126 432 29 Kills 16 | . . 4 12 . Allies Corrupted . | . . . . . Allies Melted . | . . . . . Intel | -11 -10 -10 -9 -8 ------- Run | Yrd Mat Min Mat Mat Active Infowar (turns) 951 | . 75 787 89 . Sensors 8 | . . . 8 . Structural 943 | . 75 787 81 . Robot Analysis Total . | . . . . . Derelict Logs Recovered 2 | . . 2 . . Drone Launches . | . . . . . Drone Recoveries . | . . . . . Exploration | -11 -10 -10 -9 -8 ------------- Run | Yrd Mat Min Mat Mat Turns Passed 1647 | 59 101 787 329 371 Spaces Moved 1030 | 33 59 478 173 287 Core 185 | 2 . . . 183 Treads 834 | 31 59 478 173 93 Legs 4 | . . . . 4 Wheels . | . . . . . Hover . | . . . . . Flight 7 | . . . . 7 Fastest Speed 35 | 50 160 160 160 35 Average Speed 143 | 153 160 160 160 102 Slowest Speed 240 | 160 160 160 160 240 Overloaded Moves . | . . . . . Propulsion Burnouts . | . . . . . Robots Hopped . | . . . . . Potential Cave-ins . | . . . . . Cave-ins Triggered . | . . . . . Exploration Rate (%) 36 | 3 20 88 30 41 Regions Visited 4 Branch Regions 1 Pre-discovered Areas 1 | . . 1 . . Known Exits Taken . | . . . . . Unknown Exits Taken 4 | 1 1 1 1 . Scrap Searched 2 | . . 2 . . Spaces Dug . | . . . . . Terrain Destroyed 52 | . . . 52 . Melee . | . . . . . Projectile . | . . . . . AOE 52 | . . . 52 . Terrain Rammed . | . . . . . Walls Destroyed . | . . . . . Machines Disabled . | . . . . . Actions | -11 -10 -10 -9 -8 --------- Run | Yrd Mat Min Mat Mat Total 1121 | 39 61 488 202 331 Wait 8 | . . . . 8 Move 1026 | 32 58 477 172 287 Hop . | . . . . . Pick Up 12 | 1 . 5 4 2 Fast Attach 11 | 6 1 . 1 3 Attach 5 | . . . 3 2 Detach 3 | . . . 3 . Swap 4 | . . . 4 . Drop 12 | . . . 3 9 Fire 39 | . 2 6 12 19 Melee . | . . . . . Ram 1 | . . . . 1 Kick . | . . . . . Crush . | . . . . . Escape Stasis . | . . . . . Rewire . | . . . . . Trap . | . . . . . Miscellaneous . | . . . . . Route ------- -11/Scrapyard -10/Materials -10/Mines (discovered 2 exits: [*Mat x2]) -9/Materials (discovered 3 exits: *Mat / Min x2) -8/Materials (discovered 1 exit: [*Sto]) History --------- Turn | Location | Event 22 | -11/Scrapyard | Discovered new exit (range 14) 60 | -11/Scrapyard | Entered Materials 146 | -10/Materials | Discovered new exit (range 10) 161 | -10/Materials | Entered Mines 168 | -10/Mines | Discovered new exit (range 11) 185 | -10/Mines | Assisted by bots powering up and referring to "LRC-V3" 194 | -10/Mines | Assembled infested the area 313 | -10/Mines | Found a Scrap Suit stashed away for nefarious purposes 316 | -10/Mines | Build established: Mutant 317 | -10/Mines | Found Scrap Suit 719 | -10/Mines | Found a damaged Exp. Sensor Array with a note attached 722 | -10/Mines | Found Prototype Device 876 | -10/Mines | Discovered new exit (range 14) 909 | -10/Mines | Learned location of Mines (-9) 948 | -10/Mines | Entered Materials 948 | -9/Materials | Accompanied by 3 allies 948 | -9/Materials | Evolved 2 slots: Utility x2 949 | -9/Materials | Identified exit to Mines 1062 | -9/Materials | Identified Exp. Sensor Array 1221 | -9/Materials | Discovered new exit (range 16) 1277 | -9/Materials | Entered another Materials area 1277 | -8/Materials | Accompanied by 1 ally 1277 | -8/Materials | Evolved 2 slots: Propulsion x1, Utility x1 1336 | -8/Materials | Discovered new exit (range 10) 1476 | -8/Materials | Garrison activated, responded to threat 1543 | -8/Materials | Lost 6 parts (2p3n1w) 1604 | -8/Materials | Core integrity fell below 50% 1624 | -8/Materials | Core integrity fell below 20% 1647 | -8/Materials | Lost 3 parts (3u) 1648 | -8/Materials | Destroyed by S-10 Pest with Light Assault Rifle Last Messages --------------- 01594_ Acquired Hacking Suite. 01597_ Slammed into G-47 Trooper. 01598_ Hacking Suite destroyed. 01598_ Material Processor disabled. 01606_ ALERT: Suspicious intruders detected, dispatching Specialist reinforcements to area. 01612_ System corrupted: Heat flow error (+261). 01612_ O-16 Technician: "IFF HANDSHAKE FAILED. SECURING TERMINAL." 01612_ Material Processor disabled. 01616_ Hacking Suite destroyed. 01617_ O-16 Technician uses terminal to summon reinforcements. 01617_ ALERT: Hostiles spotted, dispatching reinforcements to Terminal M011. 01617_ O-16 Technician locks terminal. 01620_ S-10 Pest suffers critical hit (Burn). 01620_ S-10 Pest destroyed. 01633_ T-07 Excavator is excavating. 01638_ W-25 Informer sends out distress signal. Map ----- +----------------------------------------------------+ | | | | | | | | | | | | | ?????????????????????????????????????????????????? | | ?????????????????????????????????????????????????? | | ?????????????????????????????????????????????????? | | ?????????????????????????????????????????????????? | | ?????????????????????????????????????????????????? | | ???????????????????????? ????????????????????????? | | ???????????????????????? ??????????????????????### | | ???????????????????????# ?????????????H????????# | | ???????????????????????# ??????????????????????# ! | | ???????????????????????# ??????????????????????# ! | | ???????????????????????# ??????????????????????# ! | | ???????????????????????# ??????????????????????# | | ???????????????????????# ##????????????????????# | | ???????????????????????+ #????????????????????# | | ???????????????????????# #????????????????????# | | ???????????????????????# #????????????????###?# | | ???????????????????????# #???#######? ####"T"### | | ???????????# #### ### #???# # | | ???????????+ Y ##### # | | ???????????# @ s #? """ """ | | ?????????????????#######+###### #???T" """" | | ??????????????????????????????# """ #?? """" | | ??????????????????????????????# """ #? ? ? """" | | ??????????????????????????????# """ #?? """ | | ??????????????????????????????# #?? | | ??????????????????????????????# "" #? * | | ??????????????????????????????# """ #?? | | ??????????????????????????????# S" #??# ##T###### | | ??????????????????????????????#! #??? ????????? | | ??????????????????????????????####/###?? ????????? | | ??????????????????????????????# #?? #???????? | | ??????????????????############# ### ##??????? | | ??????????????? #??????? | | ??????????????? T +??????? | | ???????????????????+########### ## ###??????? | | ??????????????????????????????# ## #????????? | | ????????????????????????????#####/##### #????????? | | ????????????????????????????# # #????????? | | ????????????????????????????# [ # ########## | | ????????????????????????????# # | | ????????????????????????????# """"""" + [% | | ????????????????????????????# """"""" # | | ????????????????????????????# """"""" # ^^######## | | ????????????????????????????# """"""" # #??????? | +----------------------------------------------------+ Best States ------------- Heat Dissipation 45 Energy Generation 14 Energy Capacity 250 Matter Stores 300 Matter Capacity 300 Sight Range 16 Robot Scan Range 20 Terrain Scan Density 10 Evasion (%) 50 Recoil Reduction 2 Offensive Hacking 10 Item Schematics ----------------- None Robot Schematics ------------------ None Fabricated ------------ Nothing Repaired ---------- Nothing Alien Tech Used ----------------- None Achievements -------------- None Challenges ------------ None Game ------ Seed BombTrackerFragment Manual? 0 Play Time 00:14:48 Cumulative 97.0 hours Start 2025.05.25 @ 20:41:16 End 2025.05.25 @ 20:52:08 Sessions 1 Manual Loads 0 Difficulty Rogue Special Mode None Game No. 192 Rogue 192 Adventurer 0 Explorer 0 Win Type - Total 0 Types 0/0/0/0/0/0/0/0/0/0 Lore% 22 Gallery% 41 Achievement% 34 Wizard Run 0 Options --------- Layout 1 ASCII 0 Keyboard 1 Movement Arrows Keybinds 0 Fullscreen 2 Font 24/Smallcaps Map View 50x35 Zoom Use 0% Tactical HUD 1 Map Filters NONE Filters NONE Steam 1 RUN: 1a557bec-9c17-4561-bca6-ed3b07382c9f